lending/lending_fUSD_20250131
["ID","MTS","AMOUNT","RATE_DAILY","PERIOD"]
[351152452,1738359047387,-1315.39888589,0.00018511,2]
[351152453,1738359047397,-150.4877767,0.00018516,2]
[351152454,1738359047407,-268.22154354,0.00018516,2]
[351152455,1738359047416,-150.0,0.00018516,2]
[351152456,1738359047426,-150.0,0.00018516,2]
[351152457,1738359047435,-150.0,0.00018516,2]
[351152458,1738359047445,-150.0,0.00018516,2]
[351152459,1738359047454,-2577.0,0.00018516,2]
[351152460,1738359047463,-153.593778,0.00018516,2]
[351152461,1738359047474,-330.06157726,0.00018521,2]
[351152462,1738359047483,-247.37,0.00018529,2]
[351152463,1738359047492,-150.0,0.00018543,2]
[351152464,1738359047501,-150.0,0.00018543,2]
[351152465,1738359047510,-2577.0,0.00018543,2]
[351152466,1738359047520,-176.84316533,0.0001855,2]
[351152467,1738359047529,-5228.19433294,0.0001856,2]
[351152468,1738359047538,-246.79375488,0.00018571,2]
[351152469,1738359047547,-207.95081796,0.00018571,2]
[351152470,1738359047557,-2577.0,0.00018571,2]
[351152471,1738359047566,-1043.0,0.00018575,2]
[351152472,1738359047575,-2577.0,0.00018598,2]
[351152473,1738359047584,-1000.0,0.000186,2]
[351152474,1738359047593,-3800.0,0.000186,6]
[351152475,1738359047602,-330.06157726,0.00018603,2]
[351152476,1738359047611,-1090.78048527,0.00018624,2]
[351152477,1738359047620,-2577.0,0.00018626,2]
[351152478,1738359047630,-1000.0,0.0001863,2]
[351152479,1738359047639,-1000.0,0.0001863,2]
[351152480,1738359047647,-1000.0,0.0001863,2]
[351152481,1738359047656,-1000.0,0.0001863,2]
[351152482,1738359047665,-1000.0,0.0001863,2]
[351152483,1738359047673,-1000.0,0.0001863,2]
[351152484,1738359047682,-1000.0,0.0001863,2]
[351152485,1738359047691,-1000.0,0.0001863,2]
[351152486,1738359047700,-602.0,0.0001863,2]
[351152487,1738359047709,-372.0,0.0001863,2]
[351152488,1738359047719,-1315.39888589,0.00018646,2]
[351152489,1738359047728,-2577.0,0.00018653,2]
[351152490,1738359047737,-1000.0,0.00018655,2]
[351152491,1738359047746,-2577.0,0.0001868,2]
[351152492,1738359047756,-179.02,0.00018681,2]
[351152493,1738359047764,-330.06157726,0.00018685,2]
[351152494,1738359047774,-1462.88012441,0.000187,2]
[351152495,1738359047783,-700.0,0.000187,6]
[351152496,1738359047792,-2577.0,0.00018708,2]
[351152497,1738359047801,-2577.0,0.00018735,2]
[351152498,1738359047810,-371.71,0.00018751,2]
[351152499,1738359047819,-999.0,0.00018758,2]
[351152500,1738359047828,-500.0,0.00018759,2]
[351152501,1738359047840,-500.0,0.00018759,2]
[351152502,1738359047849,-496.0,0.00018759,2]
[351152503,1738359047859,-200.0,0.00018759,2]
[351152504,1738359047868,-200.0,0.00018759,2]
[351152505,1738359047877,-200.0,0.00018759,2]
[351152506,1738359047886,-200.0,0.00018759,2]
[351152507,1738359047895,-200.0,0.00018759,2]
[351152508,1738359047903,-200.0,0.00018759,2]
[351152509,1738359047912,-200.0,0.00018759,2]
[351152510,1738359047925,-200.0,0.00018759,2]
[351152511,1738359047934,-200.0,0.00018759,2]
[351152512,1738359047943,-200.0,0.00018759,2]
[351152513,1738359047952,-200.0,0.00018759,2]
[351152514,1738359047963,-200.0,0.00018759,2]
[351152515,1738359047974,-200.0,0.00018759,2]
[351152516,1738359047983,-200.0,0.00018759,2]
[351152517,1738359047995,-200.0,0.00018759,2]
[351152518,1738359048005,-200.0,0.00018759,2]
[351152519,1738359048014,-200.0,0.00018759,2]
[351152520,1738359048023,-200.0,0.00018759,2]
[351152521,1738359048032,-200.0,0.00018759,2]
[351152522,1738359048041,-200.0,0.00018759,2]
[351152523,1738359048050,-200.0,0.00018759,2]
[351152524,1738359048059,-200.0,0.00018759,2]
[351152525,1738359048068,-200.0,0.00018759,2]
[351152526,1738359048077,-200.0,0.00018759,2]
[351152527,1738359048087,-205.0,0.00018759,2]
[351152528,1738359048096,-2577.0,0.00018763,2]
[351152529,1738359048105,-330.06157726,0.00018767,2]
[351152530,1738359048114,-167.0,0.00018769,2]
[351152531,1738359048123,-11719.4563,0.00018777,2]
[351152532,1738359048133,-164.65609022,0.0001878,2]
[351152533,1738359048142,-151.0,0.0001878,2]
[351152534,1738359048151,-151.0,0.0001878,2]
[351152535,1738359048162,-151.0,0.0001878,2]
[351152536,1738359048171,-151.0,0.0001878,2]
[351152537,1738359048181,-151.0,0.0001878,2]
[351152538,1738359048191,-1315.39888589,0.0001878,2]
[351152539,1738359048200,-5228.19433294,0.0001878,2]
[351152540,1738359048209,-151.0,0.0001878,2]
[351152541,1738359048220,-151.0,0.0001878,2]
[351152542,1738359048230,-151.0,0.0001878,2]
[351152543,1738359048240,-180.035708,0.0001878,2]
[351152544,1738359048250,-180.035708,0.0001878,2]
[351152545,1738359048260,-151.0,0.0001878,2]
[351152546,1738359048270,-1309.79299166,0.0001878,2]
[351152547,1738359048280,-151.0,0.0001878,2]
[351152548,1738359048290,-151.0,0.0001878,2]
[351152549,1738359048299,-410.73275465,0.0001878,3]
[351152550,1738359048309,-151.0,0.0001878,2]
[351152551,1738359048318,-174.68459097,0.0001878,2]
[351152552,1738359048476,-151.0,0.0001878,2]
[351152553,1738359048492,-151.0,0.0001878,2]
[351152554,1738359048502,-1209.074223,0.0001878,2]
[351152555,1738359048512,-31050.0,0.0001878,2]
[351152556,1738359048522,-2577.0,0.0001879,2]
[351152557,1738359048531,-1090.78048527,0.00018797,2]
[351152558,1738359048540,-7616.30701362,0.000188,2]
[351152559,1738359048549,-9465.7772119,0.000188,2]
[351152563,1738359363126,375.57,0.00010137,2]
[351152581,1738360232403,-212.74,0.00013699,2]
[351152582,1738360232413,-150.0,0.00014084,2]
[351152583,1738360232422,-150.0,0.00014592,2]
[351152584,1738360232431,-906.02,0.00014823,2]
[351152585,1738360232441,-300.0,0.00014899,2]
[351152586,1738360232450,-1707.30231143,0.000149,2]
[351152587,1738360232461,-821.04480131,0.000149,2]
[351152588,1738360232471,-3211.21541089,0.000149,2]
[351152589,1738360232480,-150.0,0.00015068,2]
[351152590,1738360232489,-1813.27070788,0.00015178,2]
[351152591,1738360232504,-40159.72929212,0.00015178,2]
[351152592,1738360232513,-150.0,0.00015452,2]
[351152593,1738360232523,-420.0,0.00016308,2]
[351152594,1738360232533,-200.0,0.00016606,2]
[351152595,1738360232543,-500.0,0.00016624,2]
[351152596,1738360232553,-168.9146,0.00016637,2]
[351152597,1738360232563,-378.37,0.00016637,2]
[351152598,1738360232573,-370.88,0.00016637,2]
[351152599,1738360232582,-377.91,0.00016637,2]
[351152600,1738360232592,-376.24,0.00016637,2]
[351152601,1738360232602,-460.52,0.00016646,2]
[351152602,1738360232612,-250.0,0.00016693,2]
[351152603,1738360232622,-150.0,0.00016705,2]
[351152604,1738360232631,-2398.5,0.00016706,2]
[351152605,1738360232640,-317.61,0.00016706,2]
[351152606,1738360232650,-375.01,0.00016731,2]
[351152607,1738360232659,-335.33,0.00016742,3]
[351152608,1738360232669,-169.18,0.00016745,2]
[351152609,1738360232679,-372.21,0.00016773,2]
[351152610,1738360232688,-375.57,0.00016813,2]
[351152611,1738360232698,-150.0,0.00016818,2]
[351152612,1738360232707,-158.85,0.00016831,2]
[351152613,1738360232716,-500.0,0.00016831,2]
[351152614,1738360232725,-377.82,0.00016834,2]
[351152615,1738360232735,-200.0,0.00016834,2]
[351152616,1738360232746,-494.78,0.00016858,2]
[351152617,1738360232759,-212.03,0.00016902,2]
[351152618,1738360232768,-378.17,0.00016922,2]
[351152619,1738360232779,-900.0,0.00016922,2]
[351152620,1738360232788,-500.0,0.00016922,2]
[351152621,1738360232797,-250.0,0.00016958,2]
[351152622,1738360232807,-150.0,0.00016966,2]
[351152623,1738360232816,-23900.0,0.00016981,2]
[351152624,1738360232826,-906.02,0.00017087,2]
[351152625,1738360232835,-212.74,0.00017123,2]
[351152627,1738360232844,-1000.0,0.00017142,2]
[351152629,1738360232853,-189.67,0.00017406,2]
[351152631,1738360232863,-48486.8609,0.00017471,2]
[351152633,1738360232872,-406.78297952,0.00017471,2]
[351152635,1738360232882,-3523.20137772,0.00017483,2]
[351152637,1738360232892,-1699.53086586,0.0001749,2]
[351152639,1738360232901,-1699.53086586,0.00017508,2]
[351152641,1738360232911,-3523.20137772,0.00017519,2]
[351152643,1738360232920,-3523.20137772,0.00017521,2]
[351152645,1738360232929,-3523.20137772,0.0001754,2]
[351152647,1738360232942,-200.0,0.00017578,2]
[351152649,1738360232952,-1699.53086586,0.0001758,2]
[351152651,1738360232962,-167.497,0.00017593,2]
[351152653,1738360232971,-3613.453,0.00017593,2]
[351152655,1738360232981,-1699.53086586,0.000176,2]
[351152657,1738360232991,-227.58469979,0.0001762,2]
[351152659,1738360233002,-294.59,0.00017701,2]
[351152661,1738360233012,-500.0,0.000178,7]
[351152663,1738360233021,-2134.21,0.000178,2]
[351152665,1738360233030,-500.0,0.000178,7]
[351152667,1738360233040,-500.0,0.000178,7]
[351152669,1738360233049,-500.0,0.000178,7]
[351152671,1738360233058,-500.0,0.000178,7]
[351152673,1738360233068,-500.0,0.000178,7]
[351152675,1738360233077,-500.0,0.000178,7]
[351152677,1738360233087,-500.0,0.000178,7]
[351152679,1738360233097,-500.0,0.000178,7]
[351152680,1738360233107,-500.0,0.000178,7]
[351152682,1738360233116,-500.0,0.000178,7]
[351152684,1738360233126,-500.0,0.000178,7]
[351152687,1738360233136,-500.0,0.000178,7]
[351152688,1738360233145,-500.0,0.000178,7]
[351152691,1738360233156,-500.0,0.000178,7]
[351152693,1738360233166,-500.0,0.000178,7]
[351152694,1738360233176,-500.0,0.000178,7]
[351152697,1738360233186,-500.0,0.000178,7]
[351152699,1738360233196,-500.0,0.000178,7]
[351152700,1738360233206,-500.0,0.000178,7]
[351152702,1738360233216,-500.0,0.000178,7]
[351152704,1738360233226,-500.0,0.000178,7]
[351152707,1738360233236,-500.0,0.000178,7]
[351152708,1738360233246,-500.0,0.000178,7]
[351152710,1738360233259,-500.0,0.000178,7]
[351152713,1738360233270,-500.0,0.000178,7]
[351152714,1738360233280,-500.0,0.000178,7]
[351152716,1738360233293,-500.0,0.000178,7]
[351152718,1738360233304,-500.0,0.000178,7]
[351152720,1738360233314,-500.0,0.000178,7]
[351152722,1738360233324,-500.0,0.000178,7]
[351152724,1738360233334,-500.0,0.000178,7]
[351152726,1738360233345,-500.0,0.000178,7]
[351152728,1738360233354,-500.0,0.000178,7]
[351152730,1738360233364,-500.0,0.000178,7]
[351152732,1738360233373,-500.0,0.000178,7]
[351152734,1738360233384,-587.0,0.0001785,2]
[351152736,1738360233394,-704.51183381,0.000179,2]
[351152738,1738360233403,-375.3,0.000179,2]
[351152740,1738360233413,-374.99,0.000179,2]
[351152742,1738360233423,-150.0,0.0001795,2]
[351152744,1738360233432,-900.0,0.00018018,2]
[351152746,1738360233442,-500.0,0.00018018,2]
[351152748,1738360233452,-704.51183372,0.00018038,2]
[351152750,1738360233462,-500.0,0.00018052,2]
[351152752,1738360233472,-223.02,0.00018082,2]
[351152754,1738360233482,-155.414252,0.00018114,2]
[351152756,1738360233492,-704.51183372,0.00018176,2]
[351152758,1738360233502,-151.0,0.00018185,2]
[351152760,1738360233511,-900.0,0.00018214,2]
[351152762,1738360233521,-900.0,0.00018214,2]
[351152764,1738360233531,-900.0,0.00018214,2]
[351152766,1738360233541,-900.0,0.00018214,2]
[351152767,1738360233550,-900.0,0.00018214,2]
[351152769,1738360233560,-900.0,0.00018214,2]
[351152770,1738360233569,-900.0,0.00018214,2]
[351152772,1738360233579,-900.0,0.00018214,2]
[351152774,1738360233588,-900.0,0.00018214,2]
[351152776,1738360233598,-900.0,0.00018214,2]
[351152778,1738360233607,-2021.0,0.00018255,2]
[351152780,1738360233617,-568.0,0.00018255,2]
[351152782,1738360233626,-637.0,0.00018255,2]
[351152784,1738360233636,-217.413,0.00018255,2]
[351152786,1738360233646,-1656.156,0.00018255,2]
[351152788,1738360233655,-782.0,0.00018255,2]
[351152790,1738360233665,-329.42,0.00018255,2]
[351152792,1738360233675,-1323.0,0.00018255,2]
[351152794,1738360233684,-204.636,0.00018255,2]
[351152796,1738360233694,-150.0,0.00018301,2]
[351152798,1738360233703,-704.51183372,0.00018314,2]
[351152799,1738360233713,-360.75778438,0.00018386,2]
[351152802,1738360233723,-1120.76194656,0.00018424,2]
[351152803,1738360233732,-1099.25606518,0.00018424,2]
[351152805,1738360233741,-268.7218927,0.00018424,2]
[351152807,1738360233753,-704.51183372,0.00018452,2]
[351152810,1738360233763,-704.51183372,0.0001859,2]
[351152812,1738360233773,-21931.1689,0.000187,2]
[351152813,1738360233784,-1854.36564052,0.00018713,2]
[351152815,1738360233794,-704.51183372,0.00018728,2]
[351152817,1738360233803,-1000.0,0.00018749,2]
[351152819,1738360233813,-223.02,0.00018751,2]
[351152821,1738360233822,-1471.33,0.0001877,2]
[351152823,1738360233832,-1909.19409325,0.00018771,2]
[351152828,1738360233868,-437.7779378,0.00018771,2]
[351152830,1738360233881,-348.89010204,0.00018771,2]
[351152834,1738360233909,-2304.13786691,0.00018771,2]
[351152836,1738360233919,-165.53731245,0.00018775,2]
[351152838,1738360233928,-17677.45942481,0.0001878,2]
[351152841,1738360233947,-2580.47070208,0.0001878,2]
[351152843,1738360233958,-1619.96968001,0.0001878,2]
[351152845,1738360233969,-967.62447659,0.0001878,2]
[351152847,1738360233981,-755.408006,0.0001878,2]
[351152849,1738360233993,-1011.2504272,0.0001878,2]
[351152851,1738360234007,-752.8,0.0001878,2]
[351152853,1738360234018,-540.3200002,0.0001878,2]
[351152856,1738360234030,-623.36980975,0.0001878,2]
[351152893,1738360238360,-157.03,0.00017832,30]
[351152894,1738360238371,-236.689,0.0001878,2]
[351152895,1738360238382,-645.95675201,0.0001878,2]
[351152896,1738360238394,-640.36482134,0.0001878,2]
[351152897,1738360238405,-2247.45080876,0.0001878,2]
[351152917,1738360240569,-1564.63249988,0.0001878,2]
[351152918,1738360240581,-587.20611046,0.0001878,2]
[351152919,1738360240592,-1652.65,0.0001878,2]
[351152920,1738360240603,-4587.8262158,0.0001878,2]
[351152921,1738360240615,-310.02882,0.0001878,2]
[351152922,1738360240627,-16553.52244511,0.0001878,2]
[351152923,1738360240636,-162.20903324,0.0001878,2]
[351152924,1738360240645,-860.34962125,0.0001878,2]
[351152925,1738360240654,-176.84316533,0.0001878,2]
[351152926,1738360240664,-9236.85024579,0.0001878,2]
[351152927,1738360240673,-273.82183642,0.0001878,3]
[351152928,1738360240682,-873.19532778,0.0001878,2]
[351152929,1738360240691,-174.68459096,0.0001878,2]
[351152930,1738360240702,-15555.1224495,0.00018796,2]
[351152931,1738360240711,-4341.3403398,0.00018796,2]
[351152932,1738360240720,-508.9620979,0.00018796,2]
[351152933,1738360240730,-54705.80782821,0.000188,2]
[351152934,1738360240741,-5800.0,0.000188,2]
[351152935,1738360240750,-5800.0,0.000188,2]
[351152936,1738360240760,-2000.0,0.000188,2]
[351152937,1738360240769,-200.0,0.000188,2]
[351152938,1738360240778,-2747.53056372,0.000188,2]
[351152939,1738360240787,-3000.0,0.000188,2]
[351152940,1738360240796,-1471.33,0.00018861,2]
[351152941,1738360240805,-704.51183372,0.00018866,2]
[351152942,1738360240814,-30604.74673887,0.00018871,2]
[351152944,1738360240825,-137137.64140673,0.00018871,2]
[351152947,1738360240844,-3097.34390933,0.00018871,2]
[351152949,1738360240855,-312.95732016,0.00018871,2]
[351152951,1738360240866,-7595.3199836,0.00018871,2]
[351152954,1738360240881,-324.57584771,0.00018871,2]
[351152956,1738360240892,-307.24326,0.00018871,2]
[351153079,1738360243383,-1036.45520053,0.0001868,2]
[351153087,1738360243452,-14359.26509947,0.0001868,2]
[351153089,1738360243461,-8661.19451053,0.00018871,2]
[351153091,1738360243473,-52861.09931878,0.00018871,2]
[351153092,1738360243482,-330.06157726,0.00018877,2]
[351153093,1738360243492,-48767.36780397,0.00018877,2]
[351153094,1738360243614,-21011.9969961,0.00018877,2]
[351153147,1738360246344,-3336.2,0.00018877,2]
[351153148,1738360246355,-5206.5,0.00018877,2]
[351153149,1738360246367,-5880.77330942,0.00018877,2]
[351153150,1738360246378,-332.60388,0.00018877,2]
[351153151,1738360246431,-76350.00000007,0.00018877,2]
[351153152,1738360246530,-339.993,0.00018877,2]
[351153153,1738360246618,-2087.729095,0.00018877,2]
[351153154,1738360246629,-10703.0,0.00018877,2]
[351153155,1738360246641,-1655.54688,0.00018877,2]
[351153156,1738360246652,-1101.04369199,0.00018877,2]
[351153180,1738360295344,150.020106,0.00021,120]
[351153181,1738360395159,188.91,0.00010137,2]
[351153213,1738361431491,-550.0,0.00013,2]
[351153214,1738361431500,-73.44006736,0.00013699,2]
[351153215,1738361431514,-119.12993264,0.00013699,2]
[351153216,1738361431523,-150.0,0.00013804,2]
[351153217,1738361431532,-255.59019705,0.00014019,2]
[351153220,1738361431628,-702.33980295,0.00014019,2]
[351153221,1738361431638,-150.0,0.000143,2]
[351153222,1738361431651,-4405.0,0.00014408,2]
[351153223,1738361431660,-600.0,0.00015,2]
[351153224,1738361431670,-1000.0,0.00015803,2]
[351153225,1738361431680,-434.58,0.00015849,2]
[351153226,1738361431690,-221.09,0.00015987,2]
[351153227,1738361431700,-500.0,0.00016001,2]
[351153228,1738361431710,-273.2,0.00016034,2]
[351153229,1738361431719,-862.14,0.00016048,2]
[351153230,1738361431729,-200.0,0.0001609,2]
[351153231,1738361431739,-1500.0,0.00016091,2]
[351153232,1738361431749,-212.03,0.00016146,2]
[351153233,1738361431758,-957.93,0.00016283,2]
[351153234,1738361431767,-200.0,0.00016329,2]
[351153235,1738361431777,-500.0,0.00016389,2]
[351153236,1738361431787,-150.0,0.00016559,2]
[351153237,1738361431796,-7278.82480122,0.0001665,2]
[351153238,1738361431812,-1518.65,0.0001665,2]
[351153239,1738361431824,-6289.07,0.0001665,2]
[351153240,1738361431835,-3071.705,0.0001665,2]
[351153241,1738361431846,-3517.25000014,0.0001665,2]
[351153242,1738361431858,-2224.50019864,0.0001665,2]
[351153243,1738361431867,-157.03,0.00016658,30]
[351153244,1738361431876,-165.87,0.00016824,2]
[351153245,1738361431885,-110.88374205,0.00016888,2]
[351153246,1738361431897,-257.14625795,0.00016888,2]
[351153247,1738361431905,-36.35336629,0.00016888,2]
[351153248,1738361431916,-209.64663371,0.00016888,2]
[351153249,1738361431925,-376.39,0.00016922,2]
[351153250,1738361431935,-372.61,0.00016922,2]
[351153251,1738361431943,-369.9,0.00016922,2]
[351153252,1738361431953,-381.9,0.00016922,2]
[351153253,1738361431962,-375.1,0.00016922,2]
[351153254,1738361431971,-369.45,0.00016922,2]
[351153255,1738361431981,-380.46,0.00016922,2]
[351153256,1738361431990,-375.49,0.00016922,2]
[351153257,1738361431999,-377.28,0.00016922,2]
[351153258,1738361432010,-382.47,0.00016922,2]
[351153259,1738361432019,-371.79,0.00016922,2]
[351153260,1738361432028,-150.0,0.00016922,2]
[351153261,1738361432037,-500.0,0.00016922,2]
[351153262,1738361432047,-900.0,0.00016922,2]
[351153263,1738361432057,-373.15,0.00017,2]
[351153264,1738361432066,-381.35,0.00017,2]
[351153265,1738361432076,-375.15,0.00017,2]
[351153266,1738361432085,-1218.0,0.00017,2]
[351153267,1738361432095,-650.0,0.00017,2]
[351153268,1738361432104,-150.0,0.00017049,2]
[351153269,1738361432113,-192.57,0.00017123,2]
[351153270,1738361432122,-250.0,0.00017177,2]
[351153272,1738361432131,-5000.0,0.00017299,2]
[351153274,1738361432140,-301.3513,0.000173,2]
[351153276,1738361432150,-2500.0,0.000173,2]
[351153278,1738361432160,-1101.5333,0.000173,2]
[351153280,1738361432169,-1000.0,0.000173,2]
[351153282,1738361432178,-545.089,0.000173,2]
[351153284,1738361432188,-737.4425325,0.000173,2]
[351153286,1738361432197,-165.53731245,0.000173,2]
[351153288,1738361432207,-2349.91221972,0.000173,2]
[351153290,1738361432216,-165.53731245,0.00017313,2]
[351153292,1738361432226,-150.0,0.00017323,2]
[351153294,1738361432235,-165.53731245,0.00017326,2]
[351153296,1738361432244,-165.53731245,0.00017339,2]
[351153298,1738361432253,-165.53731245,0.00017351,2]
[351153300,1738361432263,-165.53731245,0.00017364,2]
[351153301,1738361432272,-500.0,0.00017373,2]
[351153302,1738361432281,-165.53731245,0.00017377,2]
[351153303,1738361432290,-3600.62548514,0.0001739,2]
[351153304,1738361432300,-806.049482,0.0001739,2]
[351153305,1738361432310,-182.54789096,0.0001739,2]
[351153306,1738361432319,-165.53731245,0.0001739,2]
[351153307,1738361432328,-582.13021852,0.0001739,2]
[351153308,1738361432338,-6157.90016386,0.0001739,2]
[351153309,1738361432347,-500.0,0.00017399,2]
[351153310,1738361432357,-589.28133436,0.00017399,2]
[351153311,1738361432366,-14739.39500216,0.00017399,2]
[351153312,1738361432378,-988.468,0.00017399,2]
[351153313,1738361432393,-272.47,0.00017399,2]
[351153314,1738361432405,-322.26793109,0.00017399,2]
[351153315,1738361432417,-44554.98350343,0.00017399,2]
[351153316,1738361432433,-27165.19711598,0.00017399,2]
[351153317,1738361432448,-18101.20623369,0.00017399,2]
[351153323,1738361437563,-1022414.9679701,0.00017399,2]
[351153324,1738361437761,-2293909.51031367,0.00017399,2]
[351153325,1738361437771,-184.7211278,0.000174,2]
[351153326,1738361437781,-1378626.20845198,0.000174,15]
[351153336,1738361439592,-4496.38296764,0.000174,15]
[351153337,1738361439621,-473.80287302,0.000174,15]
[351153338,1738361439633,-3420.74141438,0.000174,15]
[351153339,1738361439652,-1179.325,0.000174,15]
[351153340,1738361439691,-3231.742997,0.000174,15]
[351153341,1738361439803,-460.87425264,0.000174,15]
[351153342,1738361439829,-297271.7399124,0.000174,15]
[351153343,1738361439965,-450.07,0.000174,15]
[351153344,1738361440008,-673.25,0.000174,15]
[351153382,1738361442603,-1028.8383976,0.000174,15]
[351153383,1738361442615,-2296.9987998,0.000174,15]
[351153384,1738361442626,-36733.56493354,0.000174,15]
[351153385,1738361442636,-5146.90102252,0.00017479,2]
[351153386,1738361442647,-5146.90102252,0.00017486,2]
[351153387,1738361442659,-451.17,0.0001749,2]
[351153388,1738361442669,-774.29,0.0001749,2]
[351153389,1738361442678,-439.19,0.0001749,2]
[351153390,1738361442688,-774.29,0.0001749,2]
[351153391,1738361442697,-774.29,0.0001749,2]
[351153392,1738361442707,-439.19,0.0001749,2]
[351153393,1738361442716,-774.29,0.0001749,2]
[351153394,1738361442726,-438.49,0.0001749,2]
[351153395,1738361442742,-9112.50777766,0.00017509,2]
[351153396,1738361442752,-1894.70965928,0.00017516,2]
[351153397,1738361442762,-9112.50777766,0.00017523,2]
[351153398,1738361442771,-1894.70965928,0.00017524,2]
[351153399,1738361442782,-83592.99814754,0.00017532,2]
[351153400,1738361442794,-288.82359079,0.00017532,2]
[351153401,1738361442815,-6313.9722416,0.00017532,2]
[351153405,1738361445461,-2655.43106763,0.00017532,2]
[351153406,1738361445572,-102049.92326181,0.00017532,2]
[351153407,1738361445686,-2496.1736,0.00017532,2]
[351153408,1738361445715,-53945.0,0.00017532,2]
[351153409,1738361445830,-350.0,0.00017532,2]
[351153420,1738362480378,45760.29238502,0.0001,2]
[351153428,1738362631800,-150.0,9.999e-05,2]
[351153429,1738362631809,-10599.52855872,0.0001,2]
[351153430,1738362631820,-973.725,0.0001,2]
[351153431,1738362631832,-542.92,0.0001,2]
[351153432,1738362631843,-479.93,0.0001,2]
[351153433,1738362631855,-83616.95560437,0.0001,2]
[351153434,1738362631867,-307.0811705,0.00010899,2]
[351153435,1738362631877,-150.0,0.00011,2]
[351153436,1738362631886,-150.0,0.00011,2]
[351153437,1738362631896,-294.33321446,0.000125,2]
[351153438,1738362631905,-3500.0,0.00013,2]
[351153439,1738362631914,-4236.01411148,0.00013,2]
[351153440,1738362631923,-437.79415801,0.00013,2]
[351153441,1738362631933,-550.0,0.00013,2]
[351153442,1738362631942,-5114.94060372,0.0001305,2]
[351153443,1738362631951,-250.0,0.00013212,2]
[351153444,1738362631960,-1000.0,0.000135,2]
[351153445,1738362631970,-184.4,0.00013699,2]
[351153446,1738362631980,-953.67,0.00014142,2]
[351153447,1738362631990,-530.39283317,0.000144,2]
[351153448,1738362632004,-530.39283303,0.000144,2]
[351153449,1738362632013,-1958.95811852,0.00015,2]
[351153450,1738362632023,-32629.31018175,0.00015,2]
[351153451,1738362632032,-24637.49746376,0.00015,2]
[351153452,1738362632043,-8053.61243991,0.00015,2]
[351153453,1738362632052,-150.0,0.00015068,2]
[351153454,1738362632062,-297.39417096,0.000151,2]
[351153455,1738362632072,-1517.64,0.000153,2]
[351153456,1738362632082,-15965.22543527,0.000154,2]
[351153457,1738362632092,-485.50844141,0.000154,2]
[351153458,1738362632102,-23890.0,0.0001563,2]
[351153459,1738362632113,-250.0,0.00015732,2]
[351153460,1738362632122,-1000.0,0.00015814,2]
[351153461,1738362632131,-364.3,0.00015944,2]
[351153462,1738362632140,-200.0,0.00015944,2]
[351153463,1738362632150,-446.3,0.00015981,2]
[351153464,1738362632160,-1482.09606821,0.00016,2]
[351153465,1738362632170,-193.59,0.00016093,2]
[351153466,1738362632179,-225.0,0.00016375,2]
[351153467,1738362632188,-166.68,0.00016381,2]
[351153468,1738362632198,-953.67,0.00016406,2]
[351153469,1738362632207,-165.02,0.00016472,2]
[351153470,1738362632217,-378.49,0.0001655,2]
[351153472,1738362632226,-368.44,0.0001655,2]
[351153474,1738362632235,-375.16,0.00016551,2]
[351153476,1738362632244,-379.76,0.00016551,2]
[351153478,1738362632252,-381.28,0.00016551,2]
[351153480,1738362632262,-379.98,0.00016551,2]
[351153482,1738362632270,-382.2,0.00016551,2]